fUSD/lending_fUSD_20241009
["ID","MTS","AMOUNT","RATE_DAILY","PERIOD"]
[340076573,1728472256827,-559.90740941,0.00043013,120]
[340076574,1728472256836,-311.04028244,0.00043013,120]
[340076575,1728472256847,-188.95971756,0.00043013,120]
[340076576,1728472256856,-500.0,0.00043013,120]
[340076577,1728472256866,-500.0,0.00043013,120]
[340076578,1728472256874,-530.15108066,0.00043013,120]
[340076579,1728472256883,-507.14028701,0.00043013,120]
[340076580,1728472256893,-500.0,0.00043013,120]
[340076581,1728472256902,-500.0,0.00043013,120]
[340076582,1728472256911,-437.74891497,0.00043013,120]
[340076583,1728472256923,-62.25108503,0.00043013,120]
[340076584,1728472256932,-405.37937205,0.00043013,120]
[340076585,1728472256943,-94.62062795,0.00043013,120]
[340076586,1728472256952,-500.0,0.00043013,120]
[340076587,1728472256962,-510.79671763,0.00043013,120]
[340076588,1728472256971,-3189.97,0.00043013,120]
[340076589,1728472256980,-500.0,0.00043013,120]
[340076590,1728472256989,-1202.58,0.00043013,120]
[340076591,1728472256998,-500.0,0.00043013,120]
[340076592,1728472257007,-621.75,0.00043013,120]
[340076593,1728472257016,-1566.38,0.00043013,120]
[340076594,1728472257025,-500.0,0.00043013,120]
[340076595,1728472257035,-500.0,0.00043013,120]
[340076596,1728472257044,-500.0,0.00043013,120]
[340076597,1728472257053,-500.0,0.00043013,2]
[340076598,1728472257062,-500.0,0.00043013,120]
[340076599,1728472257071,-574.50417256,0.00043013,120]
[340076600,1728472257081,-500.0,0.00043013,120]
[340076601,1728472257091,-500.0,0.00043013,120]
[340076602,1728472257101,-500.0,0.00043013,120]
[340076603,1728472257111,-500.0,0.00043013,120]
[340076604,1728472257123,-521.97,0.00043013,120]
[340076605,1728472257132,-500.0,0.00043013,120]
[340076606,1728472257142,-515.92271529,0.00043013,120]
[340076607,1728472257151,-1503.23,0.00043013,120]
[340076608,1728472257160,-515.22504449,0.00043013,120]
[340076609,1728472257169,-500.0,0.00043013,120]
[340076610,1728472257178,-500.0,0.00043013,120]
[340076611,1728472257187,-30775.98,0.00043013,30]
[340076612,1728472257197,-524.32568633,0.00043013,120]
[340076613,1728472257206,-514.57772507,0.00043013,120]
[340076614,1728472257215,-522.36194828,0.00043013,120]
[340076615,1728472257225,-508.28206571,0.00043013,120]
[340076616,1728472257234,-500.0,0.00043013,120]
[340076617,1728472257243,-500.0,0.00043013,120]
[340076618,1728472257252,-500.0,0.00043013,120]
[340076619,1728472257261,-509.47,0.00043013,21]
[340076620,1728472257271,-500.0,0.00043013,120]
[340076621,1728472257280,-521.83028905,0.00043013,120]
[340076622,1728472257289,-508.38292047,0.00043013,120]
[340076623,1728472257298,-500.0,0.00043013,120]
[340076624,1728472257308,-500.0,0.00043013,120]
[340076625,1728472257318,-2419.96,0.00043013,120]
[340076626,1728472257327,-707.89,0.00043013,120]
[340076627,1728472257336,-500.0,0.00043013,120]
[340076628,1728472257346,-500.0,0.00043013,120]
[340076629,1728472257354,-500.0,0.00043013,120]
[340076630,1728472257364,-500.0,0.00043013,120]
[340076631,1728472257373,-500.0,0.00043013,120]
[340076632,1728472257382,-3175.69,0.00043013,120]
[340076633,1728472257391,-2508.75,0.00043013,120]
[340076634,1728472257400,-2234.82,0.00043013,120]
[340076635,1728472257409,-500.0,0.00043013,120]
[340076636,1728472257419,-500.0,0.00043013,120]
[340076637,1728472257428,-601.97,0.00043013,120]
[340076638,1728472257437,-590.63742211,0.00043013,120]
[340076639,1728472257446,-515.42175476,0.00043013,120]
[340076640,1728472257455,-500.0,0.00043013,120]
[340076641,1728472257465,-500.0,0.00043013,120]
[340076642,1728472257475,-500.0,0.00043013,120]
[340076643,1728472257484,-500.0,0.00043013,120]
[340076644,1728472257493,-500.0,0.00043013,120]
[340076645,1728472257503,-592.42677748,0.00043013,120]
[340076646,1728472257512,-512.68205997,0.00043013,120]
[340076647,1728472257521,-507.36524767,0.00043013,120]
[340076648,1728472257531,-500.0,0.00043013,120]
[340076649,1728472257540,-500.0,0.00043013,120]
[340076650,1728472257549,-500.0,0.00043013,120]
[340076651,1728472257558,-5813.53,0.00043013,120]
[340076652,1728472257569,-500.0,0.00043013,7]
[340076653,1728472257578,-500.0,0.00043013,120]
[340076654,1728472257587,-500.0,0.00043013,120]
[340076655,1728472257596,-3027.47,0.00043013,120]
[340076656,1728472257606,-500.0,0.00043013,120]
[340076657,1728472257615,-500.0,0.00043013,120]
[340076658,1728472257624,-500.0,0.00043013,120]
[340076659,1728472257633,-514.57726788,0.00043013,120]
[340076660,1728472257642,-500.0,0.00043013,120]
[340076661,1728472257651,-1109.28,0.00043013,120]
[340076662,1728472257661,-500.0,0.00043013,120]
[340076663,1728472257670,-500.0,0.00043013,120]
[340076664,1728472257679,-517.79841445,0.00043013,120]
[340076665,1728472257688,-1674.41,0.00043013,120]
[340076666,1728472257697,-1986.91,0.00043013,120]
[340076667,1728472257706,-500.0,0.00043013,120]
[340076668,1728472257715,-509.25456203,0.00043013,120]
[340076669,1728472257724,-521.10536598,0.00043013,120]
[340076670,1728472257732,-1864.71,0.00043013,120]
[340076671,1728472257741,-633.68,0.00043013,120]
[340076672,1728472257751,-509.2754736,0.00043013,120]
[340076673,1728472257760,-500.0,0.00043013,30]
[340076674,1728472257769,-500.0,0.00043013,120]
[340076675,1728472257778,-1080.43,0.00043013,120]
[340076676,1728472257787,-1654.13,0.00043013,120]
[340076677,1728472257796,-500.0,0.00043013,120]
[340076678,1728472257805,-1794.68,0.00043013,120]
[340076679,1728472257814,-605.05,0.00043013,120]
[340076680,1728472257823,-500.0,0.00043013,120]
[340076681,1728472257832,-607.46524423,0.00043013,120]
[340076682,1728472257841,-513.66176204,0.00043013,120]
[340076683,1728472257851,-500.0,0.00043013,120]
[340076684,1728472257860,-614.90911178,0.00043013,120]
[340076685,1728472257870,-500.0,0.00043013,120]
[340076686,1728472257879,-332.87185717,0.00043013,120]
[340076687,1728472257888,-500.0,0.00043013,120]
[340076688,1728472257898,-7136.11,0.00043013,120]
[340076689,1728472257907,-647.47,0.00043013,120]
[340076690,1728472257916,-500.0,0.00043013,120]
[340076691,1728472257926,-294.76695095,0.00043013,120]
[340076692,1728472257935,-500.0,0.00043013,120]
[340076693,1728472257945,-500.0,0.00043013,120]
[340076694,1728472257954,-500.0,0.00043013,120]
[340076695,1728472257963,-500.0,0.00043013,120]
[340076696,1728472257973,-608.17,0.00043013,120]
[340076697,1728472257982,-500.0,0.00043013,120]
[340076698,1728472257991,-1603.6,0.00043013,120]
[340076699,1728472258000,-500.0,0.00043013,120]
[340076700,1728472258010,-500.0,0.00043013,120]
[340076701,1728472258019,-500.0,0.00043013,120]
[340076702,1728472258028,-500.0,0.00043013,120]
[340076703,1728472258038,-500.0,0.00043013,120]
[340076704,1728472258047,-2120.15,0.00043013,120]
[340076705,1728472258056,-1747.48,0.00043013,120]
[340076706,1728472258066,-500.0,0.00043013,120]
[340076707,1728472258075,-500.0,0.00043013,120]
[340076708,1728472258084,-500.0,0.00043013,120]
[340076709,1728472258093,-1303.4,0.00043013,120]
[340076710,1728472258103,-1811.5,0.00043013,120]
[340076711,1728472258117,-557.83,0.00043013,120]
[340076712,1728472258126,-500.0,0.00043013,120]
[340076713,1728472258136,-500.0,0.00043013,120]
[340076714,1728472258145,-500.0,0.00043013,120]
[340076715,1728472258157,-500.0,0.00043013,120]
[340076716,1728472258167,-500.0,0.00043013,120]
[340076717,1728472258176,-507.19885722,0.00043013,120]
[340076718,1728472258187,-810.78,0.00043013,120]
[340076719,1728472258196,-500.0,0.00043013,120]
[340076720,1728472258205,-567.42,0.00043013,120]
[340076721,1728472258215,-429.07,0.00043014,2]
[340076722,1728472258224,-1983.39246161,0.00043133,28]
[340076723,1728472258233,-150.0,0.00043138,30]
[340076724,1728472258242,-150.0,0.00043188,30]
[340076725,1728472258252,-150.0,0.00043194,120]
[340076726,1728472258261,-161.100913,0.00043198,120]
[340076727,1728472258270,-204.847281,0.00043244,10]
[340076728,1728472258279,-157.1105306,0.00043265,120]
[340076729,1728472258288,-150.0,0.00043282,30]
[340076730,1728472258298,-1695.37508,0.00043287,120]
[340076731,1728472258307,-500.0,0.00043287,120]
[340076732,1728472258317,-500.0,0.00043287,120]
[340076733,1728472258326,-500.0,0.00043287,120]
[340076734,1728472258336,-511.92504966,0.00043287,2]
[340076735,1728472258348,-500.0,0.00043287,5]
[340076736,1728472258358,-500.0,0.00043287,120]
[340076737,1728472258367,-521.63006683,0.00043287,120]
[340076738,1728472258377,-502.26,0.00043287,120]
[340076739,1728472258385,-500.0,0.00043287,120]
[340076740,1728472258395,-1430.58,0.00043287,120]
[340076741,1728472258405,-150.55811501,0.00043287,2]
[340076742,1728472258414,-500.0,0.00043287,2]
[340076743,1728472258423,-513.91,0.00043287,120]
[340076744,1728472258432,-500.0,0.00043287,120]
[340076745,1728472258442,-1371.89,0.00043287,120]
[340076746,1728472258451,-779.59,0.00043287,120]
[340076747,1728472258461,-514.15989266,0.00043287,120]
[340076748,1728472258471,-529.36275572,0.00043287,120]
[340076749,1728472258480,-500.0,0.00043287,120]
[340076750,1728472258490,-500.0,0.00043287,120]
[340076751,1728472258500,-500.0,0.00043287,120]
[340076752,1728472258511,-504.18170776,0.00043287,120]
[340076753,1728472258520,-421.88778234,0.00043287,120]
[340076754,1728472258530,-356.95402811,0.00043287,120]
[340076755,1728472258539,-500.0,0.00043287,120]
[340076756,1728472258548,-500.0,0.00043287,120]
[340076757,1728472258558,-500.0,0.00043287,120]
[340076758,1728472258569,-500.0,0.00043287,120]
[340076759,1728472258579,-500.0,0.00043287,120]
[340076760,1728472258588,-500.0,0.00043287,120]
[340076761,1728472258597,-500.0,0.00043287,120]
[340076762,1728472258607,-500.0,0.00043287,120]
[340076763,1728472258616,-500.0,0.00043287,120]
[340076764,1728472258626,-500.0,0.00043287,120]
[340076765,1728472258635,-500.0,0.00043287,120]
[340076766,1728472258644,-500.0,0.00043287,120]
[340076767,1728472258654,-500.0,0.00043287,120]
[340076768,1728472258663,-500.0,0.00043287,120]
[340076769,1728472258673,-500.0,0.00043287,120]
[340076770,1728472258682,-515.30548674,0.00043287,120]
[340076771,1728472258691,-500.0,0.00043287,120]
[340076772,1728472258701,-500.0,0.00043287,60]
[340076773,1728472258809,-500.0,0.00043287,120]
[340076774,1728472258818,-210.43728452,0.00043287,120]
[340076775,1728472258828,-500.0,0.00043287,120]
[340076776,1728472258837,-500.0,0.00043287,7]
[340076777,1728472258846,-500.0,0.00043287,120]
[340076778,1728472258855,-530.64899613,0.00043287,120]
[340076779,1728472258864,-500.0,0.00043287,120]
[340076780,1728472258873,-500.0,0.00043287,120]
[340076781,1728472258882,-500.0,0.00043287,120]
[340076782,1728472258891,-500.0,0.00043287,120]
[340076783,1728472258900,-500.0,0.00043287,120]
[340076784,1728472258909,-8670.821325,0.00043287,120]
[340076785,1728472258918,-383.32498422,0.00043287,120]
[340076786,1728472258927,-500.0,0.00043287,120]
[340076787,1728472258936,-500.0,0.00043287,120]
[340076788,1728472258945,-500.0,0.00043287,120]
[340076789,1728472258955,-587.65,0.00043287,120]
[340076790,1728472258964,-500.0,0.00043287,120]
[340076791,1728472258973,-500.0,0.00043287,120]
[340076792,1728472258982,-500.0,0.00043287,120]
[340076793,1728472258991,-500.0,0.00043287,120]
[340076794,1728472259000,-500.0,0.00043287,120]
[340076795,1728472259009,-2101.36,0.00043287,120]
[340076796,1728472259018,-500.0,0.00043287,120]
[340076797,1728472259028,-500.0,0.00043287,120]
[340076798,1728472259037,-500.0,0.00043287,120]
[340076799,1728472259046,-500.0,0.00043287,120]
[340076800,1728472259055,-500.0,0.00043287,120]
[340076801,1728472259065,-500.0,0.00043287,120]
[340076802,1728472259074,-500.0,0.00043287,120]
[340076803,1728472259083,-500.0,0.00043287,120]
[340076804,1728472259093,-544.15831227,0.00043287,120]
[340076805,1728472259102,-500.0,0.00043287,120]
[340076806,1728472259111,-500.0,0.00043287,120]
[340076807,1728472259120,-500.0,0.00043287,120]
[340076808,1728472259130,-1315.46,0.00043287,120]
[340076809,1728472259139,-513.97450355,0.00043287,120]
[340076810,1728472259148,-426.12392955,0.00043287,120]
[340076811,1728472259158,-221.65738471,0.00043287,120]
[340076812,1728472259167,-455.16699559,0.00043287,120]
[340076813,1728472259177,-500.0,0.00043287,2]
[340076814,1728472259186,-500.0,0.00043287,120]
[340076815,1728472259195,-176.68970315,0.00043287,120]
[340076816,1728472259204,-500.0,0.00043287,120]
[340076817,1728472259214,-500.0,0.00043287,120]
[340076818,1728472259223,-307.7089102,0.00043287,120]
[340076819,1728472259232,-501.12,0.00043287,120]
[340076820,1728472259241,-500.0,0.00043287,120]
[340076821,1728472259250,-20000.0,0.00043287,2]
[340076822,1728472259260,-523.0187,0.00043287,120]
[340076823,1728472259268,-500.0,0.00043287,120]
[340076824,1728472259278,-500.0,0.00043287,120]
[340076825,1728472259287,-500.0,0.00043287,120]
[340076826,1728472259297,-154.56884015,0.00043287,120]
[340076827,1728472259309,-500.0,0.00043287,120]
[340076828,1728472259319,-500.0,0.00043287,120]
[340076829,1728472259328,-500.0,0.00043287,120]
[340076830,1728472259337,-502.12,0.00043287,120]
[340076831,1728472259347,-500.0,0.00043287,120]
[340076832,1728472259356,-716.65,0.00043287,120]
[340076833,1728472259365,-500.0,0.00043287,120]
[340076834,1728472259375,-500.0,0.00043287,120]
[340076835,1728472259385,-500.0,0.00043287,120]
[340076836,1728472259395,-500.0,0.00043287,120]
[340076837,1728472259410,-500.0,0.00043287,120]
[340076838,1728472259420,-1417.54,0.00043287,120]
[340076839,1728472259429,-500.0,0.00043287,120]
[340076840,1728472259438,-500.0,0.00043287,120]
[340076841,1728472259448,-660.59,0.00043287,120]
[340076842,1728472259457,-855.85,0.00043287,120]
[340076843,1728472259466,-500.0,0.00043287,120]
[340076844,1728472259475,-564.56947333,0.00043287,120]
[340076845,1728472259485,-500.0,0.00043287,120]
[340076846,1728472259494,-1584.37,0.00043287,120]
[340076847,1728472259504,-500.0,0.00043287,120]
[340076848,1728472259513,-500.0,0.00043287,120]
[340076849,1728472259522,-500.0,0.00043287,120]
[340076850,1728472259532,-500.0,0.00043287,120]
[340076851,1728472259541,-500.0,0.00043287,120]
[340076852,1728472259550,-500.0,0.00043287,120]
[340076853,1728472259560,-500.0,0.00043287,120]
[340076854,1728472259569,-500.0,0.00043287,120]
[340076855,1728472259579,-500.0,0.00043287,120]
[340076856,1728472259588,-500.0,0.00043287,120]
[340076857,1728472259598,-500.0,0.00043287,120]
[340076858,1728472259607,-500.0,0.00043287,120]
[340076859,1728472259616,-621.21,0.00043287,120]
[340076860,1728472259625,-635.11644179,0.00043287,120]
[340076861,1728472259635,-500.0,0.00043287,120]
[340076862,1728472259645,-500.0,0.00043287,120]
[340076863,1728472259655,-500.0,0.00043287,120]
[340076864,1728472259664,-500.0,0.00043287,120]
[340076865,1728472259674,-500.0,0.00043287,120]
[340076866,1728472259684,-500.0,0.00043287,120]
[340076867,1728472259694,-500.0,0.00043287,120]
[340076868,1728472259704,-801.24,0.00043287,120]
[340076869,1728472259714,-500.0,0.00043287,120]
[340076870,1728472259725,-500.0,0.00043287,120]
[340076871,1728472259734,-500.0,0.00043287,120]
[340076872,1728472259746,-500.0,0.00043287,120]
[340076873,1728472259756,-500.0,0.00043287,120]
[340076874,1728472259768,-500.0,0.00043287,120]
[340076875,1728472259779,-500.0,0.00043287,120]
[340076876,1728472259789,-634.9,0.00043287,120]
[340076877,1728472259799,-500.0,0.00043287,120]
[340076878,1728472259809,-510.54974485,0.00043287,120]
[340076879,1728472259818,-500.0,0.00043287,120]
[340076880,1728472259827,-500.0,0.00043287,120]
[340076881,1728472259837,-500.0,0.00043287,120]
[340076882,1728472259847,-500.0,0.00043287,120]
[340076883,1728472259858,-500.0,0.00043287,120]
[340076884,1728472259868,-500.0,0.00043287,120]
[340076885,1728472259879,-500.0,0.00043287,120]
[340076886,1728472259889,-500.0,0.00043287,120]
[340076887,1728472259898,-500.0,0.00043287,120]
[340076888,1728472259908,-500.0,0.00043287,120]
[340076889,1728472259918,-1290.34,0.00043287,7]
[340076890,1728472259927,-500.0,0.00043287,120]
[340076891,1728472259936,-2658.43,0.00043287,120]
[340076892,1728472259945,-500.0,0.00043287,120]
[340076893,1728472259954,-500.0,0.00043287,120]
[340076894,1728472259963,-500.0,0.00043287,120]
[340076895,1728472259973,-500.0,0.00043287,120]
[340076896,1728472259982,-500.0,0.00043287,120]
[340076897,1728472259991,-500.0,0.00043287,120]
[340076898,1728472260000,-500.0,0.00043287,120]
[340076899,1728472260009,-509.47,0.00043287,120]
[340076900,1728472260018,-523.26,0.00043287,120]
[340076901,1728472260027,-621.95,0.00043287,120]
[340076902,1728472260036,-183.39646451,0.00043287,120]
[340076903,1728472260046,-500.0,0.00043287,120]
[340076904,1728472260056,-500.0,0.00043287,120]
[340076905,1728472260066,-500.0,0.00043287,120]
[340076906,1728472260076,-518.36800682,0.00043287,120]
[340076907,1728472260085,-500.0,0.00043287,120]
[340076908,1728472260094,-500.0,0.00043287,120]
[340076909,1728472260104,-589.79,0.00043287,120]
[340076910,1728472260116,-500.0,0.00043287,120]
[340076911,1728472260125,-500.0,0.00043287,120]
[340076912,1728472260135,-500.0,0.00043287,120]
[340076913,1728472260144,-208.07609042,0.00043287,7]
[340076914,1728472260154,-500.0,0.00043287,120]
[340076915,1728472260163,-500.0,0.00043287,120]
[340076916,1728472260172,-500.0,0.00043287,120]
[340076917,1728472260181,-500.0,0.00043287,120]
[340076918,1728472260190,-511.03094552,0.00043287,120]
[340076919,1728472260200,-500.0,0.00043287,120]
[340076920,1728472260209,-1411.54,0.00043287,120]
[340076921,1728472260218,-183.41990669,0.00043287,120]
[340076922,1728472260228,-380.8,0.00043287,120]
[340076923,1728472260237,-1003.7,0.00043287,120]
[340076924,1728472260246,-500.0,0.00043287,120]
[340076925,1728472260255,-500.0,0.00043287,120]
[340076926,1728472260264,-500.0,0.00043287,120]
[340076927,1728472260273,-500.0,0.00043287,120]
[340076928,1728472260282,-500.0,0.00043287,120]
[340076929,1728472260291,-500.0,0.00043287,120]
[340076930,1728472260300,-500.0,0.00043287,120]
[340076931,1728472260310,-500.0,0.00043287,120]
[340076932,1728472260319,-500.0,0.00043287,120]
[340076933,1728472260329,-295.99024,0.00043287,120]
[340076934,1728472260339,-1854.98,0.00043287,120]
[340076935,1728472260348,-500.0,0.00043287,120]
[340076936,1728472260358,-500.0,0.00043287,120]
[340076937,1728472260367,-500.0,0.00043287,120]
[340076938,1728472260376,-887.11,0.00043287,120]
[340076939,1728472260386,-625.87256979,0.00043287,120]
[340076940,1728472260395,-500.0,0.00043287,120]
[340076941,1728472260407,-500.0,0.00043287,120]
[340076942,1728472260416,-500.0,0.00043287,120]
[340076943,1728472260425,-500.0,0.00043287,120]
[340076944,1728472260435,-634.12,0.00043287,120]
[340076945,1728472260444,-500.0,0.00043287,120]
[340076946,1728472260453,-500.0,0.00043287,120]
[340076947,1728472260463,-500.0,0.00043287,120]
[340076948,1728472260473,-741.83,0.00043287,120]
[340076949,1728472260483,-500.0,0.00043287,120]
[340076950,1728472260492,-504.35,0.00043287,120]
[340076951,1728472260501,-500.0,0.00043287,120]
[340076952,1728472260510,-500.0,0.00043287,120]
[340076953,1728472260519,-500.0,0.00043287,120]
[340076954,1728472260528,-500.0,0.00043287,120]
[340076955,1728472260538,-500.0,0.00043287,120]
[340076956,1728472260547,-500.0,0.00043287,120]
[340076957,1728472260556,-500.0,0.00043287,120]
[340076958,1728472260567,-1736.63,0.00043287,120]
[340076959,1728472260576,-500.0,0.00043287,120]
[340076960,1728472260586,-500.0,0.00043287,120]
[340076961,1728472260595,-500.0,0.00043287,120]
[340076962,1728472260604,-4669.34,0.00043287,120]
[340076963,1728472260613,-500.0,0.00043287,120]
[340076964,1728472260622,-500.0,0.00043287,120]
[340076965,1728472260631,-500.0,0.00043287,120]
[340076966,1728472260641,-500.0,0.00043287,120]
[340076967,1728472260650,-500.0,0.00043287,120]
[340076968,1728472260752,-626.72,0.00043287,120]
[340076969,1728472260762,-500.0,0.00043287,120]
[340076970,1728472260771,-500.0,0.00043287,120]
[340076971,1728472260780,-500.0,0.00043287,120]
[340076972,1728472260790,-500.0,0.00043287,120]
[340076973,1728472260799,-2045.86,0.00043287,120]
[340076974,1728472260808,-500.0,0.00043287,120]
[340076975,1728472260817,-500.0,0.00043287,120]
[340076976,1728472260826,-505.89674191,0.00043287,120]
[340076977,1728472260836,-500.0,0.00043287,120]
[340076978,1728472260845,-500.0,0.00043287,120]
[340076979,1728472260854,-500.0,0.00043287,120]
[340076980,1728472260863,-503.80509626,0.00043287,120]
[340076981,1728472260873,-963.8,0.00043287,120]
[340076982,1728472260883,-500.0,0.00043287,120]
[340076983,1728472260892,-500.0,0.00043287,120]
[340076984,1728472260903,-500.0,0.00043287,120]
[340076985,1728472260912,-500.0,0.00043287,120]
[340076986,1728472260921,-500.0,0.00043287,120]
[340076987,1728472260931,-500.0,0.00043287,120]
[340076988,1728472260940,-500.0,0.00043287,120]
[340076989,1728472260949,-846.18,0.00043287,120]
[340076990,1728472260959,-500.0,0.00043287,120]
[340076991,1728472260968,-500.0,0.00043287,120]
[340076992,1728472260977,-500.0,0.00043287,120]
[340076993,1728472260987,-500.0,0.00043287,120]
[340076994,1728472260996,-691.39,0.00043287,120]
[340076995,1728472261006,-500.0,0.00043287,120]
[340076996,1728472261015,-500.0,0.00043287,120]
[340076997,1728472261025,-500.0,0.00043287,120]
[340076998,1728472261035,-500.0,0.00043287,120]
[340076999,1728472261045,-774.85,0.00043287,120]
[340077000,1728472261054,-500.0,0.00043287,120]
[340077001,1728472261064,-390.12415796,0.00043287,120]
[340077002,1728472261074,-779.27,0.00043287,120]
[340077003,1728472261084,-500.0,0.00043287,120]
[340077004,1728472261094,-500.0,0.00043287,120]
[340077005,1728472261105,-500.0,0.00043287,120]
[340077006,1728472261117,-500.0,0.00043287,120]
[340077007,1728472261127,-500.0,0.00043287,120]
[340077008,1728472261136,-500.0,0.00043287,120]
[340077009,1728472261146,-500.0,0.00043287,120]
[340077010,1728472261158,-500.0,0.00043287,120]
[340077011,1728472261167,-500.0,0.00043287,120]
[340077012,1728472261176,-500.0,0.00043287,120]
[340077013,1728472261186,-500.0,0.00043287,120]
[340077014,1728472261195,-500.0,0.00043287,120]
[340077015,1728472261205,-500.0,0.00043287,120]
[340077016,1728472261214,-500.0,0.00043287,120]
[340077017,1728472261224,-500.0,0.00043287,120]
[340077018,1728472261233,-500.0,0.00043287,120]
[340077019,1728472261243,-500.0,0.00043287,120]
[340077020,1728472261253,-500.0,0.00043287,120]
[340077021,1728472261262,-500.0,0.00043287,120]
[340077022,1728472261272,-369.02206448,0.00043287,120]
[340077023,1728472261281,-500.0,0.00043287,120]
[340077024,1728472261291,-545.45,0.00043287,120]
[340077025,1728472261300,-652.52,0.00043287,120]
[340077026,1728472261309,-500.0,0.00043287,120]
[340077027,1728472261318,-479.67202891,0.00043287,120]
[340077028,1728472261328,-522.41996474,0.00043287,120]
[340077029,1728472261338,-500.0,0.00043287,120]
[340077030,1728472261347,-500.0,0.00043287,120]
[340077031,1728472261357,-1882.71,0.00043287,120]
[340077032,1728472261366,-500.0,0.00043287,120]
[340077033,1728472261375,-770.51,0.00043287,5]
[340077034,1728472261385,-500.0,0.00043287,120]
[340077035,1728472261395,-500.0,0.00043287,120]
[340077036,1728472261405,-500.0,0.00043287,120]
[340077037,1728472261414,-500.0,0.00043287,120]
[340077038,1728472261424,-800.11,0.00043287,120]
[340077039,1728472261433,-500.0,0.00043287,120]
[340077040,1728472261443,-500.0,0.00043287,120]
[340077041,1728472261452,-500.0,0.00043287,120]
[340077042,1728472261461,-671.56,0.00043287,120]
[340077043,1728472261471,-1758.04,0.00043287,120]
[340077044,1728472261481,-500.0,0.00043287,120]
[340077045,1728472261491,-564.23338592,0.00043287,120]
[340077046,1728472261500,-511.33857781,0.00043287,120]
[340077047,1728472261509,-500.0,0.00043287,120]
[340077048,1728472261519,-500.0,0.00043287,120]
[340077049,1728472261529,-3189.97,0.00043287,120]
[340077050,1728472261538,-427.65669243,0.00043287,120]
[340077051,1728472261548,-1202.58,0.00043287,120]
[340077052,1728472261557,-500.0,0.00043287,120]
[340077053,1728472261567,-621.75,0.00043287,120]
[340077054,1728472261577,-1566.38,0.00043287,120]
[340077055,1728472261587,-500.0,0.00043287,120]
[340077056,1728472261596,-500.0,0.00043287,2]
[340077057,1728472261606,-500.0,0.00043287,120]
[340077058,1728472261615,-576.72322472,0.00043287,120]
[340077059,1728472261624,-418.65047829,0.00043287,120]
[340077060,1728472261633,-500.0,0.00043287,120]
[340077061,1728472261643,-500.0,0.00043287,120]
[340077062,1728472261652,-521.97,0.00043287,120]
[340077063,1728472261670,-500.0,0.00043287,120]
[340077064,1728472261680,-1503.23,0.00043287,120]
[340077065,1728472261689,-500.0,0.00043287,120]
[340077066,1728472261699,-278.34747837,0.00043287,120]
[340077067,1728472261708,-30775.98,0.00043287,30]
[340077068,1728472261717,-500.0,0.00043287,120]
[340077069,1728472261726,-500.0,0.00043287,120]
[340077070,1728472261735,-500.0,0.00043287,120]
[340077071,1728472261745,-509.47,0.00043287,21]
[340077072,1728472261754,-500.0,0.00043287,120]